[Event "XII Figueira da Foz Open 2018"]
[Site "Figueira da Foz"]
[Date "2018.11.04"]
[Round "9"]
[White "Dong, Rafael"]
[Black "Morais, Mario Martins Freit"]
[Result "0-1"]
[ECO "A10"]
[WhiteElo "1360"]
[BlackElo "1766"]
[Annotator "NA RC"]
[PlyCount "40"]
[EventDate "2018.10.30"]
[EventType "swiss"]
[EventCountry "POR"]
[SourceTitle "playchess.com"]
[Source "ChessBase"]
[SourceQuality "1"]
[TimeControl "40/5400+30:1800+30"]

1. c4 {[%emt 0:00:00]} b6 {[%emt 0:00:00]} 2. Nc3 {[%emt 0:00:00]} Bb7 {[%emt 0:00:05]} 3. Nf3 {[%emt 0:00:03]} Nf6 {[%emt 0:00:12]} 4. d3 {[%emt 0:00:49]} e6 {[%emt 0:01:06]} 5. g3 {[%emt 0:01:19]} Nc6 {[%emt 0:00:36]} 6. Bg2 {[%emt 0:00:11]} Be7 {[%emt 0:01:32]} 7. O-O {[%emt 0:00:36]} Qc8 {[%emt 0:00:05]} 8. a3 {[%emt 0:00:40]} a5 {[%emt 0:00:15]} 9. Rb1 {[%emt 0:02:07]} h5 {[%emt 0:00:30]} 10. h3 {[%emt 0:00:22]} e5 {[%emt 0:02:58]} 11. e3 {[%emt 0:01:38]} h4 {[%emt 0:01:57]} 12. g4 {[%emt 0:00:12]} Nxg4 {[%emt 0:00:07]} 13. hxg4 {[%emt 0:00:55]} h3 {[%emt 0:00:05]} 14. Bh1 {[%emt 0:06:06]} d5 {[%emt 0:08:00]} 15. Nh2 {[%emt 0:00:38]} d4 {[%emt 0:00:26]} 16. exd4 {[%emt 0:01:57]} Nxd4 {[%emt 0:00:13]} 17. Ne4 {[%emt 0:02:41]} f5 {[%emt 0:00:23]} 18. gxf5 {[%emt 0:03:09]} Qxf5 {[%emt 0:02:18]} 19. Qg4 {[%emt 0:00:27]} Rh4 {[%emt 0:00:14]} 20. Qxf5 {[%emt 0:01:24]} Ne2# {[%emt 0:00:07]} 0-1

[Event "XII Figueira da Foz Open 2018"]
[Site "Figueira da Foz"]
[Date "2018.11.04"]
[Round "9"]
[White "Dong, Fabio"]
[Black "Marcal, Armando Paulo Gomes"]
[Result "1/2-1/2"]
[ECO "A36"]
[WhiteElo "1273"]
[BlackElo "1751"]
[Annotator "NA RC"]
[PlyCount "80"]
[EventDate "2018.10.30"]
[EventType "swiss"]
[EventCountry "POR"]
[SourceTitle "playchess.com"]
[Source "ChessBase"]
[SourceQuality "1"]
[TimeControl "40/5400+30:1800+30"]

1. c4 {[%emt 0:00:00]} c5 {[%emt 0:01:54]} 2. Nc3 {[%emt 0:00:00]} Nc6 {[%emt 0:01:15]} 3. g3 {[%emt 0:00:00]} d6 {[%emt 0:00:32]} 4. Bg2 {[%emt 0:00:02]} Nf6 {[%emt 0:00:31]} 5. Nf3 {[%emt 0:00:31]} a6 {[%emt 0:04:56]} 6. O-O {[%emt 0:00:53]} Rb8 {[%emt 0:00:35]} 7. d4 {[%emt 0:00:25]} cxd4 {[%emt 0:01:08]} 8. Nxd4 {[%emt 0:00:19]} Ne5 {[%emt 0:00:22]} 9. Bg5 {[%emt 0:07:40]} e6 {[%emt 0:03:15]} 10. Ne4 {[%emt 0:03:04]} h6 {[%emt 0:03:32]} 11. Nxf6+ {[%emt 0:05:19]} gxf6 {[%emt 0:00:09]} 12. Be3 {[%emt 0:03:19]} Bd7 {[%emt 0:01:23]} 13. b3 {[%emt 0:00:43]} h5 14. h4 Ng4 {[%emt 0:08:15]} 15. Bd2 {[%emt 0:02:09]} Qb6 {[%emt 0:07:07]} 16. Bc3 {[%emt 0:01:42]} Bh6 {[%emt 0:04:26]} 17. e3 {[%emt 0:01:06]} e5 {[%emt 0:00:41]} 18. Nc2 {[%emt 0:01:28]} Bxe3 {[%emt 0:05:46]} 19. fxe3 {[%emt 0:00:26]} Nxe3 {[%emt 0:00:19]} 20. Nxe3 {[%emt 0:00:56]} Qxe3+ {[%emt 0:00:07]} 21. Kh2 Qxc3 {[%emt 0:09:05]} 22. Rxf6 {[%emt 0:00:42]} Rg8 {[%emt 0:02:25]} 23. Rf3 {[%emt 0:00:17]} Qb4 24. Rd3 {[%emt 0:00:16]} Ke7 {[%emt 0:07:37]} 25. Qxh5 {[%emt 0:00:57]} Rg6 {[%emt 0:02:24]} 26. Qf3 {[%emt 0:01:13]} Bc6 {[%emt 0:03:44]} 27. Qf2 {[%emt 0:00:53]} Bxg2 {[%emt 0:00:20]} 28. Kxg2 {[%emt 0:00:00]} Rf6 {[%emt 0:04:25]} 29. Rf3 {[%emt 0:00:11]} Rxf3 {[%emt 0:02:58]} 30. Qxf3 Rf8 {[%emt 0:05:29]} 31. Rf1 {[%emt 0:00:43]} f5 {[%emt 0:00:05]} 32. a3 {[%emt 0:01:23]} Qb6 {[%emt 0:00:30]} 33. b4 e4 {[%emt 0:02:35]} 34. Qh5 {[%emt 0:02:31]} Ke6 {[%emt 0:04:50]} 35. Qg6+ Ke5 {[%emt 0:02:38]} 36. Qg7+ {[%emt 0:01:05]} Rf6 {[%emt 0:00:13]} 37. Qe7+ {[%emt 0:00:09]} Re6 {[%emt 0:00:19]} 38. Qg7+ {[%emt 0:00:07]} Rf6 {[%emt 0:00:16]} 39. Qe7+ {[%emt 0:00:12]} Re6 {[%emt 0:00:18]} 40. Qg7+ {[%emt 0:00:00]} Rf6 1/2-1/2